bitfinex/quotes_BTCUSD_20230109
["timestamp","ask_amount","ask_price","bid_price","bid_amount"]
[1673286015332,5.07749905,17340.0,17339.0,0.01777579]
[1673286015848,5.07749905,17340.0,17339.0,0.00777436]
[1673286016600,5.07749905,17340.0,17339.0,0.00520196]
[1673286017610,5.06949905,17340.0,17339.0,0.00320196]
[1673286017867,5.11549905,17340.0,17339.0,0.00320196]
[1673286018631,4.13733235,17340.0,17339.0,0.00320196]
[1673286018895,5.09266485,17340.0,17339.0,0.00320196]
[1673286019159,2.83197437,17340.0,17339.0,0.00320196]
[1673286019410,3.24437426,17340.0,17339.0,0.00320196]
[1673286019923,2.90013475,17340.0,17339.0,0.00320196]
[1673286020679,3.20013475,17340.0,17339.0,0.00320196]
[1673286021172,3.63337215,17340.0,17339.0,0.00320196]
[1673286021671,3.20013475,17340.0,17339.0,0.00320196]
[1673286022176,3.19163475,17340.0,17339.0,0.00320196]
[1673286022686,3.55377375,17340.0,17339.0,0.00320196]
[1673286022930,3.55386372,17340.0,17339.0,0.00320196]
[1673286023885,3.5544485,17340.0,17339.0,0.00320196]
[1673286024144,3.5544485,17340.0,17339.0,0.00134096]
[1673286024888,3.23009412,17340.0,17339.0,0.00134096]
[1673286025120,3.59223312,17340.0,17339.0,0.00134096]
[1673286025377,3.12356434,17340.0,17339.0,0.00134096]
[1673286025617,3.55445538,17340.0,17339.0,0.00134096]
[1673286025865,3.19231638,17340.0,17339.0,0.00134096]
[1673286026122,3.19222641,17340.0,17339.0,0.00134096]
[1673286026641,3.12347437,17340.0,17339.0,0.00134096]
[1673286026882,3.55601091,17340.0,17339.0,0.00134096]
[1673286027141,3.12356434,17340.0,17339.0,0.00134096]
[1673286027388,2.76142534,17340.0,17339.0,0.00134096]
[1673286028641,2.76133537,17340.0,17339.0,0.00134096]
[1673286028885,3.19236189,17340.0,17339.0,0.00134096]
[1673286029136,3.33988122,17340.0,17339.0,0.00134096]
[1673286029381,3.2709937,17340.0,17339.0,0.00134096]
[1673286029630,3.27108367,17340.0,17339.0,0.00134096]
[1673286030395,4.12347437,17340.0,17339.0,0.00134096]
[1673286030647,4.19245696,17340.0,17339.0,0.00134096]
[1673286031633,4.55459596,17340.0,17339.0,0.00134096]
[1673286031885,4.19245696,17340.0,17339.0,0.00134096]
[1673286032366,4.55459596,17340.0,17339.0,0.00134096]
[1673286032616,4.19245696,17340.0,17339.0,0.00134096]
[1673286033352,4.55459596,17340.0,17339.0,0.00134096]
[1673286033887,4.19245696,17340.0,17339.0,0.00134096]
[1673286034385,4.19254693,17340.0,17339.0,0.00134096]
[1673286034906,4.19245696,17340.0,17339.0,0.00134096]
[1673286035399,4.19254693,17340.0,17339.0,0.00134096]
[1673286035653,4.19245696,17340.0,17339.0,0.00134096]
[1673286036359,4.19254693,17340.0,17339.0,0.00134096]
[1673286036875,4.55468593,17340.0,17339.0,0.00134096]
[1673286037126,4.19254693,17340.0,17339.0,0.00134096]
[1673286037612,4.55468593,17340.0,17339.0,0.00134096]
[1673286037856,4.55459596,17340.0,17339.0,0.00134096]
[1673286038101,4.19245696,17340.0,17339.0,0.00134096]
[1673286038353,4.53763796,17340.0,17339.0,0.00134096]
[1673286038853,2.80332402,17340.0,17339.0,0.16624096]
[1673286039098,2.80332402,17340.0,17339.0,0.33244096]
[1673286039099,1.21855915,17340.0,17339.0,0.33244096]
[1673286039371,1.21855915,17340.0,17339.0,0.69457996]
[1673286039873,1.17255915,17340.0,17339.0,0.69457996]
[1673286040402,1.17255915,17340.0,17339.0,1.27965973]
[1673286040403,1.18655915,17340.0,17339.0,1.27965973]
[1673286040654,1.014,17340.0,17339.0,1.27965973]
[1673286041164,1.18655915,17340.0,17339.0,1.27965973]
[1673286041901,1.014,17340.0,17339.0,2.57672017]
[1673286042156,1.014,17340.0,17339.0,3.07885471]
[1673286042403,1.014,17340.0,17339.0,3.05885471]
[1673286043174,1.014,17340.0,17339.0,2.57772773]
[1673286044906,1.014,17340.0,17339.0,3.05885471]
[1673286045880,1.014,17340.0,17339.0,2.57772773]
[1673286049119,1.014,17340.0,17339.0,1.42425973]
[1673286049363,1.014,17340.0,17339.0,1.82425973]
[1673286049928,1.01408997,17340.0,17339.0,1.82425973]
[1673286050185,1.014,17340.0,17339.0,1.82425973]
[1673286050922,1.014,17340.0,17339.0,2.40099373]
[1673286055200,1.014,17340.0,17339.0,2.97772773]
[1673286057233,1.014,17340.0,17339.0,1.82425973]
[1673286060209,1.014,17340.0,17339.0,2.40099373]
[1673286061171,1.014,17340.0,17339.0,2.97772773]
[1673286062426,1.014,17340.0,17339.0,2.40099373]
[1673286062940,1.01383,17340.0,17339.0,2.40099373]
[1673286063209,1.01383,17340.0,17339.0,2.09015277]
[1673286064192,1.01383,17340.0,17339.0,2.66688677]
[1673286064442,1.01383,17340.0,17339.0,3.1479671]
[1673286064704,1.01383,17340.0,17339.0,2.66688677]
[1673286064961,1.01391997,17340.0,17339.0,2.66688677]
[1673286065210,1.01383,17340.0,17339.0,1.34721877]
[1673286065974,1.01383,17340.0,17339.0,0.374139]
[1673286065975,2.16732197,17340.0,17339.0,0.374139]
[1673286066223,2.16732197,17340.0,17339.0,0.012]
[1673286070210,2.63988112,17340.0,17339.0,0.012]
[1673286070480,2.33988112,17340.0,17339.0,0.012]
[1673286071238,2.63988112,17340.0,17339.0,0.012]
[1673286071494,3.06092112,17340.0,17339.0,0.012]
[1673286071745,4.37679307,17340.0,17339.0,0.012]
[1673286072337,4.9287401,17340.0,17339.0,0.012]
[1673286073121,4.9285038,17340.0,17339.0,0.012]
[1673286074132,4.44840787,17340.0,17339.0,0.012]
[1673286074648,4.44143959,17340.0,17339.0,0.012]
[1673286074889,4.44144049,17340.0,17339.0,0.012]
[1673286075133,4.24127559,17340.0,17339.0,0.012]
[1673286075629,4.06889161,17340.0,17339.0,0.012]
[1673286075875,4.06888317,17340.0,17339.0,0.012]
[1673286076121,4.50000476,17340.0,17339.0,0.012]
[1673286076378,4.06888317,17340.0,17339.0,0.012]
[1673286076644,4.24127559,17340.0,17339.0,0.012]
[1673286077139,4.40747559,17340.0,17339.0,0.012]
[1673286078210,4.92026474,17340.0,17339.0,0.012]
[1673286078458,4.5436995,17340.0,17339.0,0.012]
[1673286078721,4.1815605,17340.0,17339.0,0.012]
[1673286078989,3.83646947,17340.0,17339.0,0.012]
[1673286079243,4.41114774,17340.0,17339.0,0.012]
[1673286079506,4.41114774,17340.0,17339.0,0.00949121]
[1673286079740,4.96548944,17340.0,17339.0,0.00949121]
[1673286080055,4.96548944,17340.0,17339.0,0.00879121]
[1673286080241,4.70887848,17340.0,17339.0,0.00879121]
[1673286080509,0.44271844,17339.0,17337.0,0.00034959]
[1673286080778,1.730301,17338.0,17337.0,0.00034959]
[1673286081020,1.90268794,17338.0,17337.0,0.00034959]
[1673286081333,1.730301,17338.0,17337.0,0.00034959]
[1673286081791,2.130301,17338.0,17337.0,0.00034959]
[1673286082286,2.144301,17338.0,17337.0,0.00934959]
[1673286082539,2.444301,17338.0,17337.0,0.00934959]
[1673286082790,2.144301,17338.0,17337.0,0.00934959]
[1673286083037,1.744301,17338.0,17337.0,0.00934959]
[1673286084296,1.74439097,17338.0,17337.0,0.00934959]
[1673286085535,1.74445097,17338.0,17337.0,0.00934959]
[1673286086778,0.01406,17338.0,17337.0,0.72641238]
[1673286087270,0.01406,17338.0,17337.0,1.08855138]
[1673286090533,0.014,17338.0,17337.0,2.8875795]
[1673286092021,0.014,17338.0,17337.0,2.40835338]
[1673286092316,6e-05,17339.0,17337.0,2.39935338]
[1673286092564,0.008,17338.0,17337.0,2.13221438]
[1673286092814,0.008,17338.0,17337.0,2.49435338]
[1673286093325,6e-05,17339.0,17337.0,2.39935338]
[1673286093577,0.00806,17339.0,17338.0,0.754863]
[1673286093836,6e-05,17339.0,17338.0,0.754863]
[1673286095413,0.00806,17339.0,17338.0,0.754863]
[1673286095666,6e-05,17339.0,17338.0,0.754863]
[1673286095925,0.00806,17339.0,17338.0,0.849863]
[1673286100182,0.00806,17339.0,17338.0,1.75833]
[1673286100433,0.00806,17339.0,17338.0,2.98260799]
[1673286101207,0.00794259,17339.0,17338.0,2.00153052]
[1673286101480,0.00794259,17339.0,17338.0,3.15506452]
[1673286101965,0.00794259,17339.0,17338.0,2.98260799]
[1673286103494,0.00794259,17339.0,17338.0,3.15506452]
[1673286104002,0.00794259,17339.0,17338.0,2.98260799]
[1673286104264,0.00794259,17339.0,17338.0,2.40584099]
[1673286106060,0.00794259,17339.0,17338.0,2.98260799]
[1673286107332,0.00794259,17339.0,17338.0,2.98271809]
[1673286107821,0.00794259,17339.0,17338.0,2.40595109]
[1673286108601,0.00794259,17339.0,17338.0,2.98271809]
[1673286110422,0.00794259,17339.0,17338.0,3.15517462]
[1673286110602,0.00794259,17339.0,17338.0,2.98271809]
[1673286111103,0.00794259,17339.0,17338.0,2.40595109]
[1673286111606,0.00794259,17339.0,17338.0,5.27351475]
[1673286111869,0.00794259,17339.0,17338.0,5.93142178]
[1673286112133,0.94983,17340.0,17339.0,0.55471628]
[1673286112389,0.94983,17340.0,17339.0,5.37205543]
[1673286113683,0.94983,17340.0,17339.0,5.53325543]
[1673286113952,0.94983,17340.0,17339.0,5.35763666]
[1673286114738,0.94983,17340.0,17339.0,5.49663666]
[1673286115012,0.94983,17340.0,17339.0,5.35763666]
[1673286115242,0.94983,17340.0,17339.0,5.79663666]
[1673286115525,0.94983,17340.0,17339.0,6.09444622]
[1673286115750,0.94983,17340.0,17339.0,5.7981983]
[1673286116008,0.94983,17340.0,17339.0,6.23242]
[1673286116256,0.94983,17340.0,17339.0,6.23241314]
[1673286117059,0.08598823,17341.0,17340.0,0.81284982]
[1673286117309,0.08598823,17341.0,17340.0,5.90179172]
[1673286117568,0.08598823,17341.0,17340.0,6.69816944]
[1673286117569,0.03832947,17341.0,17340.0,6.69816944]
[1673286117815,0.03832947,17341.0,17340.0,5.79816944]
[1673286118108,0.03832947,17341.0,17340.0,7.12914879]
[1673286118309,0.03832947,17341.0,17340.0,5.74079172]
[1673286118559,0.03832947,17341.0,17340.0,6.34079172]
[1673286118817,0.03832947,17341.0,17340.0,6.92204575]
[1673286119063,0.03832947,17341.0,17340.0,6.32204575]
[1673286119568,0.03832947,17341.0,17340.0,5.84951459]
[1673286119819,0.03832947,17341.0,17340.0,6.14951459]
[1673286120339,0.03832947,17341.0,17340.0,5.84951459]
[1673286121792,0.03832947,17341.0,17340.0,6.32204575]
[1673286122565,0.03832947,17341.0,17340.0,6.92204575]
[1673286122847,0.03832947,17341.0,17340.0,6.32204575]
[1673286123128,0.03832947,17341.0,17340.0,6.18304575]
[1673286123378,0.03832947,17341.0,17340.0,6.15484575]
[1673286124158,0.03832947,17341.0,17340.0,6.41321769]
[1673286124432,0.03832947,17341.0,17340.0,6.15484575]
[1673286124665,0.03832947,17341.0,17340.0,5.68224103]
[1673286125427,0.03832947,17341.0,17340.0,5.5097097]
[1673286125636,0.03832947,17341.0,17340.0,5.68224103]
[1673286128242,0.03832947,17341.0,17340.0,5.400987]
[1673286128497,0.03832947,17341.0,17340.0,6.12837915]
[1673286129022,0.03832947,17341.0,17340.0,5.9557798]
[1673286129284,0.03832947,17341.0,17340.0,4.66861519]
[1673286129285,0.27600736,17341.0,17340.0,4.66861519]
[1673286129549,0.03832947,17341.0,17340.0,4.09191419]
[1673286129798,0.03832947,17341.0,17340.0,3.18611741]
[1673286130045,0.03832947,17341.0,17340.0,3.01385625]
[1673286130294,0.03832947,17341.0,17340.0,2.87585625]
[1673286130547,0.03832947,17341.0,17340.0,3.01485625]
[1673286130796,0.03832947,17341.0,17340.0,2.29915525]
[1673286131039,0.03832947,17341.0,17340.0,2.43815525]
[1673286133318,0.03832947,17341.0,17340.0,3.01485625]
[1673286134332,0.03832947,17341.0,17340.0,3.01475436]
[1673286137066,0.03832947,17341.0,17340.0,3.0942293]
[1673286137324,0.03832947,17341.0,17340.0,3.3526093]
[1673286137871,0.03832947,17341.0,17340.0,3.0942293]
[1673286138106,0.03832947,17341.0,17340.0,3.67070072]
[1673286139141,0.03832947,17341.0,17340.0,3.67083843]
[1673286139377,0.03832947,17341.0,17340.0,3.18701552]
[1673286139872,0.03832947,17341.0,17340.0,3.67083843]
[1673286140120,0.03832947,17341.0,17340.0,3.92921843]
[1673286140357,0.03832947,17341.0,17340.0,4.49696701]
[1673286140614,0.03832947,17341.0,17340.0,5.07366801]
[1673286141114,0.03832947,17341.0,17340.0,3.67083843]
[1673286141362,0.03832947,17341.0,17340.0,3.92921843]
[1673286141617,0.03832947,17341.0,17340.0,3.9292183]
[1673286142125,0.03832947,17341.0,17340.0,3.18701552]
[1673286142871,0.03832947,17341.0,17340.0,3.01475436]
[1673286143133,0.03832947,17341.0,17340.0,3.18701552]
[1673286143636,0.03832947,17341.0,17340.0,3.76371652]
[1673286145641,0.03832947,17341.0,17340.0,4.02209652]
[1673286145897,0.03832947,17341.0,17340.0,3.76371652]
[1673286146141,0.03832947,17341.0,17340.0,3.18701552]
[1673286146630,0.03832947,17341.0,17340.0,3.76371652]
[1673286147121,0.03832947,17341.0,17340.0,3.92991652]
[1673286147646,0.03832947,17341.0,17340.0,4.75533899]
[1673286148187,0.03832947,17341.0,17340.0,3.61159552]
[1673286148476,0.03832947,17341.0,17340.0,4.17870032]
[1673286148919,0.03832947,17341.0,17340.0,3.61159552]
[1673286149411,0.03832947,17341.0,17340.0,4.17875247]
[1673286149652,0.03832947,17341.0,17340.0,4.75545347]
[1673286149893,0.03832947,17341.0,17340.0,5.10023695]
[1673286150144,0.03832947,17341.0,17340.0,5.41184388]
[1673286150411,0.03832947,17341.0,17340.0,4.92797579]
[1673286150665,1.58624011,17345.0,17340.0,5.41179767]
[1673286150909,1.26371011,17345.0,17342.0,0.4]
[1673286151151,1.26371011,17345.0,17343.0,0.354748]
[1673286151399,1.26371011,17345.0,17343.0,0.07459946]
[1673286151631,1.26380008,17345.0,17342.0,0.4]
[1673286151875,1.26480008,17345.0,17342.0,0.4]
[1673286152362,1.26380008,17345.0,17342.0,0.4]
[1673286152630,1.60957885,17345.0,17342.0,0.4]
[1673286152876,0.17238694,17344.0,17342.0,0.4]
[1673286153125,0.17238694,17344.0,17342.0,0.539]
[1673286153635,0.17238694,17344.0,17342.0,0.53915719]
[1673286154678,0.17238694,17344.0,17342.0,0.40015719]
[1673286154904,0.17338694,17344.0,17342.0,0.53915719]
[1673286155925,0.001,17344.0,17342.0,0.53915719]
[1673286156217,0.17338694,17344.0,17342.0,0.53915719]
[1673286156772,0.001,17344.0,17342.0,0.53915719]
[1673286157758,0.17338694,17344.0,17342.0,0.53915719]
[1673286158520,0.17338694,17344.0,17342.0,0.53905291]
[1673286158750,0.17347691,17344.0,17342.0,0.53889572]
[1673286159498,1.00853635,17344.0,17342.0,0.53889572]
[1673286159740,0.74995594,17344.0,17342.0,0.53889572]
[1673286160752,1.14995594,17344.0,17343.0,0.00018477]
[1673286161252,0.74995594,17344.0,17343.0,0.00018477]
[1673286161502,0.001,17344.0,17343.0,0.00018477]
[1673286162244,0.4,17344.0,17343.0,0.00018477]
[1673286162497,0.001,17344.0,17343.0,0.14]
[1673286162739,0.001,17344.0,17343.0,0.14018477]
[1673286163241,0.001,17344.0,17343.0,0.14]
[1673286163510,0.001,17344.0,17343.0,0.54]
[1673286163754,0.001,17344.0,17343.0,0.54018477]
[1673286164254,0.17338694,17344.0,17343.0,0.54018477]
[1673286164509,0.001,17344.0,17343.0,0.54018477]
[1673286164750,0.001,17344.0,17343.0,0.90232377]
[1673286165246,0.001,17344.0,17343.0,1.07497392]
[1673286166256,0.001,17344.0,17343.0,2.60721893]
[1673286166493,0.001,17344.0,17343.0,3.18381993]
[1673286168218,0.001,17344.0,17343.0,2.93547786]
[1673286170472,0.001,17344.0,17343.0,3.76029344]
[1673286172254,0.001,17344.0,17343.0,3.76132078]
[1673286172497,0.001,17344.0,17343.0,3.19385786]
[1673286172748,0.001,17344.0,17343.0,3.76128115]
[1673286173003,0.001,17344.0,17343.0,3.19385786]
[1673286173264,0.001,17344.0,17343.0,3.76126513]
[1673286173506,0.001,17344.0,17343.0,3.7612631]
[1673286173750,0.001,17344.0,17343.0,3.76142369]
[1673286174000,0.001,17344.0,17343.0,3.76146158]
[1673286174245,0.001,17344.0,17343.0,2.76282771]
[1673286174492,0.001,17344.0,17343.0,2.93547786]
[1673286175985,0.001,17344.0,17343.0,3.19385786]
[1673286177465,0.001,17344.0,17343.0,2.93547786]
[1673286177714,0.001,17344.0,17343.0,3.03547786]
[1673286179219,0.00089095,17344.0,17343.0,3.03547786]
[1673286181734,0.00089095,17344.0,17343.0,3.29385786]
[1673286182221,0.00089095,17344.0,17343.0,3.86237582]
[1673286183217,0.00089095,17344.0,17343.0,3.29385786]
[1673286183955,0.00089095,17344.0,17343.0,3.03547786]
[1673286184456,0.00089095,17344.0,17343.0,4.43882856]
[1673286185203,0.00089095,17344.0,17343.0,4.92212709]
[1673286185446,0.00089095,17344.0,17343.0,4.34552609]
[1673286186251,0.00089095,17344.0,17343.0,4.34538435]
[1673286186504,0.00089095,17344.0,17343.0,4.51751768]
[1673286186765,0.00089095,17344.0,17343.0,4.6900491]
[1673286187013,0.00089095,17344.0,17343.0,3.69595592]
[1673286187527,0.00089095,17344.0,17343.0,4.3513642]
[1673286187780,0.00089095,17344.0,17343.0,4.9279652]
[1673286188030,0.00089095,17344.0,17343.0,4.44476189]
[1673286188301,0.00089095,17344.0,17343.0,3.69577327]
[1673286189058,0.00089095,17344.0,17343.0,3.12740357]
[1673286189349,0.00089095,17344.0,17343.0,2.86902357]
[1673286189884,0.00089095,17344.0,17343.0,3.43663127]
[1673286190127,0.00089095,17344.0,17343.0,3.12740357]
[1673286190378,0.00089095,17344.0,17343.0,3.69503899]
[1673286191415,0.00089095,17344.0,17343.0,3.12826078]
[1673286191668,0.00089095,17344.0,17343.0,3.69610165]
[1673286191915,0.00089095,17344.0,17343.0,3.12826078]
[1673286192417,0.00089095,17344.0,17343.0,3.69611073]
[1673286193775,0.00089095,17344.0,17343.0,4.17931189]
[1673286193971,0.00089095,17344.0,17343.0,4.35152104]
[1673286194223,0.00089095,17344.0,17343.0,3.86831358]
[1673286197492,0.00089095,17344.0,17343.0,4.92802683]
[1673286197745,0.00089095,17344.0,17343.0,5.10062618]
[1673286198000,0.00089095,17344.0,17343.0,5.62033698]
[1673286198500,0.00089095,17344.0,17343.0,5.101146]
[1673286198758,0.00089095,17344.0,17343.0,5.96570537]
[1673286199271,0.00089095,17344.0,17343.0,4.6180532]
[1673286200778,0.00089095,17344.0,17343.0,5.10121217]
[1673286201061,0.00089095,17344.0,17343.0,6.13205014]
[1673286201557,0.00089095,17344.0,17343.0,5.78666426]
[1673286203585,0.00078541,17344.0,17343.0,5.78666426]
[1673286204078,0.00078541,17344.0,17343.0,5.30350529]
[1673286204586,0.00078541,17344.0,17343.0,5.7866621]
[1673286204844,0.00078541,17344.0,17343.0,5.30350529]
[1673286206377,0.00078541,17344.0,17343.0,4.78444503]
[1673286206644,0.00078541,17344.0,17343.0,5.64909904]
[1673286208368,0.00078541,17344.0,17343.0,5.30358446]
[1673286208872,0.00078541,17344.0,17343.0,5.78673941]
[1673286209634,0.00071371,17344.0,17343.0,5.78673941]
[1673286210415,0.00071371,17344.0,17343.0,4.87260511]
[1673286210663,0.00071371,17344.0,17343.0,5.78755733]
[1673286210939,0.00071371,17344.0,17343.0,5.78751722]
[1673286211184,0.00071371,17344.0,17343.0,5.78751496]
[1673286211488,0.00071371,17344.0,17343.0,5.35571244]
[1673286211960,0.00071371,17344.0,17343.0,5.7874992]
[1673286212219,0.00071371,17344.0,17343.0,5.7874517]
[1673286212458,0.00071371,17344.0,17343.0,5.30439187]
[1673286214749,0.00071371,17344.0,17343.0,5.64978606]
[1673286215000,0.00071371,17344.0,17343.0,5.64978323]
[1673286216808,0.00071371,17344.0,17343.0,5.64977215]
[1673286217843,0.00071371,17344.0,17343.0,5.30439187]
[1673286218347,0.00071371,17344.0,17343.0,5.6497826]
[1673286218635,0.00071371,17344.0,17343.0,5.30439187]
[1673286219386,0.00071371,17344.0,17343.0,5.64978261]
[1673286219903,0.00071371,17344.0,17343.0,5.30439187]
[1673286220686,0.00071371,17344.0,17343.0,5.6498058]
[1673286222452,0.00071371,17344.0,17343.0,4.78515179]
[1673286224472,0.00071371,17344.0,17343.0,5.64928205]
[1673286224719,0.00071371,17344.0,17343.0,5.64924258]
[1673286225210,0.00071371,17344.0,17343.0,5.7872107]
[1673286225455,0.00071371,17344.0,17343.0,5.30386812]
[1673286227732,0.00071371,17344.0,17343.0,5.64933935]
[1673286228983,0.00071371,17344.0,17343.0,4.78520909]
[1673286229495,0.16574371,17344.0,17343.0,4.78520909]
[1673286229756,0.32075368,17344.0,17343.0,1.07191914]
[1673286230017,0.32066371,17344.0,17343.0,0.81278805]
[1673286230521,0.00071371,17344.0,17343.0,0.81278805]
[1673286230782,0.00071371,17344.0,17343.0,0.64]
[1673286232054,0.89732168,17344.0,17343.0,0.64]
[1673286232306,0.89723171,17344.0,17343.0,0.64]
[1673286232573,1.11820781,17344.0,17343.0,0.64]
[1673286232806,0.94582087,17344.0,17343.0,0.64]
[1673286233092,0.94591084,17344.0,17343.0,0.64]
[1673286233308,1.52247884,17344.0,17343.0,0.24]
[1673286234590,1.69477581,17344.0,17343.0,0.24]
[1673286234834,1.52238887,17344.0,17343.0,0.24]
[1673286235079,2.44370155,17344.0,17343.0,0.24]
[1673286235324,2.80584055,17344.0,17343.0,0.24]
[1673286235817,2.44370155,17344.0,17343.0,0.24]
[1673286236551,3.38240855,17344.0,17343.0,0.24]
[1673286236800,3.86632085,17344.0,17343.0,0.23993019]
[1673286237041,3.50422897,17344.0,17343.0,0.23993019]
[1673286237299,3.86636797,17344.0,17343.0,0.23993019]
[1673286237545,3.50422897,17344.0,17343.0,0.23993019]
[1673286237786,3.38240855,17344.0,17343.0,0.23993019]
[1673286238027,2.76177911,17344.0,17343.0,0.23993019]
[1673286238272,3.12391811,17344.0,17343.0,0.23993019]
[1673286239801,2.76177911,17344.0,17343.0,0.23993019]
[1673286240050,2.58939217,17344.0,17343.0,0.23993019]
[1673286240278,2.95153117,17344.0,17343.0,0.23993019]
[1673286240527,2.9514412,17344.0,17343.0,0.23993019]
[1673286240774,2.5893022,17344.0,17343.0,0.23993019]
[1673286241507,2.95153117,17344.0,17343.0,0.23993019]
[1673286242492,2.58939217,17344.0,17343.0,0.23993019]
[1673286243491,2.95153117,17344.0,17343.0,0.23993019]
[1673286244491,2.58939217,17344.0,17343.0,0.23993019]
[1673286244731,2.95153117,17344.0,17343.0,0.23993019]
[1673286244971,2.58939217,17344.0,17343.0,0.23993019]
[1673286245479,2.9514412,17344.0,17343.0,0.23993019]
[1673286245761,2.5893022,17344.0,17343.0,0.23993019]
[1673286246486,2.9514412,17344.0,17343.0,0.23993019]
[1673286247048,4.07398791,17344.0,17343.0,0.23993019]
[1673286247311,4.33256832,17344.0,17343.0,0.23993019]
[1673286248319,4.33238111,17344.0,17343.0,0.23993019]
[1673286248802,4.50477294,17344.0,17343.0,0.23993019]
[1673286249094,4.50486291,17344.0,17343.0,0.23993019]
[1673286249620,3.84882051,17344.0,17343.0,0.23993019]
[1673286250117,3.5902401,17344.0,17343.0,0.23993019]
[1673286250338,3.2902401,17344.0,17343.0,0.23993019]
[1673286250874,3.5902401,17344.0,17343.0,0.23993019]
[1673286251679,4.3323583,17344.0,17343.0,0.23993019]
[1673286251982,3.84882051,17344.0,17343.0,0.23993019]
[1673286253447,4.33231182,17344.0,17343.0,0.23993019]
[1673286253973,4.33219421,17344.0,17343.0,0.23993019]
[1673286254720,4.67697298,17344.0,17343.0,0.23993019]
[1673286254971,4.50446405,17344.0,17343.0,0.23993019]
[1673286256032,4.6769402,17344.0,17343.0,0.23993019]
[1673286256290,4.50446405,17344.0,17343.0,0.23993019]
[1673286256797,4.02097274,17344.0,17343.0,0.23993019]
[1673286257044,4.50432518,17344.0,17343.0,0.23993019]
[1673286257813,4.02097274,17344.0,17343.0,0.23993019]
[1673286258318,4.5043247,17344.0,17343.0,0.23993019]
[1673286258829,4.95620048,17344.0,17343.0,0.23993019]
[1673286259345,4.95609682,17344.0,17343.0,0.23993019]
[1673286259600,4.50445817,17344.0,17343.0,0.23993019]
[1673286260139,4.67675419,17344.0,17343.0,0.23993019]
[1673286260417,4.50445743,17344.0,17343.0,0.23993019]
[1673286260662,4.93546733,17344.0,17343.0,0.23993019]
[1673286260938,4.9552078,17344.0,17343.0,0.23993019]
[1673286261170,4.9546117,17344.0,17343.0,0.1]
[1673286261422,4.67720397,17344.0,17343.0,0.174]
[1673286261665,4.93593467,17344.0,17343.0,0.174]
[1673286261924,4.50492468,17344.0,17343.0,0.174]
[1673286262188,4.45253674,17344.0,17343.0,0.174]
[1673286262446,4.02152684,17344.0,17343.0,0.174]
[1673286262692,4.47099655,17344.0,17343.0,0.174]
[1673286262983,4.19380613,17344.0,17343.0,0.174]
[1673286263725,4.67725038,17344.0,17343.0,0.174]
[1673286263979,4.45256961,17344.0,17343.0,0.174]
[1673286264252,4.4525695,17344.0,17343.0,0.174]
[1673286264528,4.45256948,17344.0,17343.0,0.174]
[1673286264839,4.47105619,17344.0,17343.0,0.174]
[1673286265044,4.95454646,17344.0,17343.0,0.174]
[1673286265560,4.60976769,17344.0,17343.0,0.174]
[1673286265827,4.95487771,17344.0,17343.0,0.174]
[1673286266102,4.60976769,17344.0,17343.0,0.174]
[1673286266628,4.5054263,17344.0,17343.0,0.174]
[1673286268423,4.60974573,17344.0,17343.0,0.174]
[1673286268692,4.60974469,17344.0,17343.0,0.174]
[1673286268928,4.17873479,17344.0,17343.0,0.174]
[1673286269702,3.69524556,17344.0,17343.0,0.174]
[1673286273581,4.17863922,17344.0,17343.0,0.174]
[1673286273842,3.84663922,17344.0,17343.0,0.174]
[1673286274084,4.36382104,17344.0,17343.0,0.174]
[1673286274336,3.36324556,17344.0,17343.0,0.174]
[1673286275376,3.36324556,17344.0,17343.0,0.17390679]
[1673286280758,2.71866026,17344.0,17343.0,0.17390679]
[1673286281014,2.7886316,17344.0,17343.0,0.17390679]
[1673286281274,3.1507706,17344.0,17343.0,0.17390679]
[1673286281528,2.71866026,17344.0,17343.0,0.17390679]
[1673286282286,2.71866026,17344.0,17343.0,0.17351518]
[1673286282546,2.71866026,17344.0,17343.0,0.16867037]
[1673286283305,3.1368849,17344.0,17343.0,0.16867037]
[1673286284298,3.65415669,17344.0,17343.0,0.16867037]
[1673286287080,3.65406672,17344.0,17343.0,0.16867037]
[1673286287333,3.65415669,17344.0,17343.0,0.16867037]
[1673286288067,4.13816311,17344.0,17343.0,0.16867037]
[1673286288319,3.65415669,17344.0,17343.0,0.16867037]
[1673286289060,4.19607014,17344.0,17343.0,0.16867037]
[1673286289303,4.13816311,17344.0,17343.0,0.16867037]
[1673286290044,4.13816311,17344.0,17343.0,0.16367037]
[1673286292533,3.65406672,17344.0,17343.0,0.16367037]
[1673286293284,4.13807314,17344.0,17343.0,0.16367037]
[1673286296084,4.13816311,17344.0,17343.0,0.16367037]
[1673286301347,4.13816311,17344.0,17343.0,0.15988437]
[1673286303114,3.65415669,17344.0,17343.0,0.15988437]
[1673286303856,3.65315669,17344.0,17343.0,0.08588437]
[1673286304118,3.65315669,17344.0,17343.0,0.09188437]
[1673286306779,3.65487574,17344.0,17343.0,0.09188437]
[1673286307040,3.65487518,17344.0,17343.0,0.09188437]
[1673286308332,4.13879163,17344.0,17343.0,0.09188437]
[1673286308582,3.65478521,17344.0,17343.0,0.09188437]
[1673286309576,4.13879163,17344.0,17343.0,0.09188437]
[1673286310090,4.0502223,17344.0,17343.0,0.09188437]
[1673286310337,4.13883814,17344.0,17343.0,0.09188437]
[1673286310598,4.0502223,17344.0,17343.0,0.09188437]
[1673286310824,3.61989132,17344.0,17343.0,0.09188437]
[1673286311073,3.1358849,17344.0,17343.0,0.09188437]
[1673286311333,4.13882426,17344.0,17343.0,0.09188437]
[1673286311581,4.13882383,17344.0,17343.0,0.09188437]
[1673286311824,4.13882309,17344.0,17343.0,0.09188437]
[1673286312065,4.13891306,17344.0,17343.0,0.09188437]
[1673286312319,3.56728981,17344.0,17343.0,0.09188437]
[1673286312565,3.65480851,17344.0,17343.0,0.09188437]
[1673286312807,3.23658387,17344.0,17343.0,0.09188437]
[1673286313050,3.23667384,17344.0,17343.0,0.09188437]
[1673286316314,2.35561123,17344.0,17343.0,0.09188437]
[1673286316549,2.71775023,17344.0,17343.0,0.09188437]
[1673286316798,2.60942375,17344.0,17343.0,0.09188437]
[1673286317044,2.97156275,17344.0,17343.0,0.09188437]
[1673286317285,2.60942375,17344.0,17343.0,0.09188437]
[1673286317538,2.97156275,17344.0,17343.0,0.09188437]
[1673286318302,2.60942375,17344.0,17343.0,0.09188437]
[1673286318550,2.97156275,17344.0,17343.0,0.09188437]
[1673286318790,2.60933378,17344.0,17343.0,0.09188437]
[1673286320006,2.97147278,17344.0,17343.0,0.09188437]
[1673286320254,2.60933378,17344.0,17343.0,0.09188437]
[1673286320501,2.97147278,17344.0,17343.0,0.09188437]
[1673286320776,2.60933378,17344.0,17343.0,0.09188437]